[Event "January 9 Early 2024"]
[Site "https://www.chess.com"]
[Date "2024.01.11"]
[Round "6"]
[White "Diaz, Fernando"]
[Black "Osmak, Yuliia"]
[Result "1-0"]
[Board "257"]
[TimeControl "180+1"]
[WhiteFideId "3701255"]
[BlackFideId "14101602"]
[WhiteElo "2301"]
[BlackElo "2501"]
[WhiteTeam "PAR"]
[BlackTeam "UKR"]
[WhiteClock "0:00:03"]
[BlackClock "0:00:01"]

1. e4 {[%clk 0:03:00]}  e5 {[%clk 0:02:58]} 2. Nf3 {[%clk 0:02:56]}  Nc6 {[%clk 0:02:57]} 3. Bc4 {[%clk 0:02:56]}  Nf6 {[%clk 0:02:56]} 4. Ng5 {[%clk 0:02:56]}  d5 {[%clk 0:02:55]} 5. exd5 {[%clk 0:02:57]}  Na5 {[%clk 0:02:55]} 6. Bb5+ {[%clk 0:02:57]}  c6 {[%clk 0:02:56]} 7. dxc6 {[%clk 0:02:58]}  bxc6 {[%clk 0:02:57]} 8. Be2 {[%clk 0:02:58]}  Be7 {[%clk 0:02:48]} 9. Nc3 {[%clk 0:02:55]}  O-O {[%clk 0:02:45]} 10. d3 {[%clk 0:02:49]}  h6 {[%clk 0:02:39]} 11. Nge4 {[%clk 0:02:48]}  Nd5 {[%clk 0:02:38]} 12. O-O {[%clk 0:02:46]}  f5 {[%clk 0:02:37]} 13. Nxd5 {[%clk 0:02:33]}  cxd5 {[%clk 0:02:36]} 14. Nc3 {[%clk 0:02:28]}  d4 {[%clk 0:02:31]} 15. Bf3 {[%clk 0:02:20]}  e4 {[%clk 0:02:26]} 16. Nxe4 {[%clk 0:02:21]}  fxe4 {[%clk 0:02:25]} 17. Bxe4 {[%clk 0:02:22]}  Rb8 {[%clk 0:02:21]} 18. b3 {[%clk 0:02:21]}  Bb7 {[%clk 0:02:16]} 19. Bxb7 {[%clk 0:02:10]}  Nxb7 {[%clk 0:02:17]} 20. Bb2 {[%clk 0:02:03]}  Bf6 {[%clk 0:02:09]} 21. Qg4 {[%clk 0:01:56]}  Qc8 {[%clk 0:02:05]} 22. Qg3 {[%clk 0:01:41]}  Qxc2 {[%clk 0:02:01]} 23. Ba3 {[%clk 0:01:41]}  Rfe8 {[%clk 0:01:57]} 24. Rae1 {[%clk 0:01:39]}  Qd2 {[%clk 0:01:32]} 25. Ra1 {[%clk 0:01:17]}  Rbc8 {[%clk 0:01:26]} 26. Bc1 {[%clk 0:01:07]}  Qc3 {[%clk 0:01:23]} 27. Bxh6 {[%clk 0:01:05]}  Nc5 {[%clk 0:01:20]} 28. Rad1 {[%clk 0:01:00]}  Be5 {[%clk 0:01:00]} 29. f4 {[%clk 0:00:51]}  Bf6 {[%clk 0:00:55]} 30. Bg5 {[%clk 0:00:45]}  Bxg5 {[%clk 0:00:48]} 31. fxg5 {[%clk 0:00:46]}  Rf8 {[%clk 0:00:37]} 32. g6 {[%clk 0:00:35]}  Rxf1+ {[%clk 0:00:28]} 33. Rxf1 {[%clk 0:00:31]}  Qxd3 {[%clk 0:00:28]} 34. Qh4 {[%clk 0:00:27]}  Qxg6 {[%clk 0:00:26]} 35. Qxd4 {[%clk 0:00:25]}  Qe4 {[%clk 0:00:18]} 36. Qd2 {[%clk 0:00:17]}  Qd3 {[%clk 0:00:13]} 37. Qg5 {[%clk 0:00:15]}  Qd4+ {[%clk 0:00:11]} 38. Kh1 {[%clk 0:00:15]}  Rf8 {[%clk 0:00:09]} 39. Rxf8+ {[%clk 0:00:12]}  Kxf8 {[%clk 0:00:10]} 40. h4 {[%clk 0:00:12]}  Ne6 {[%clk 0:00:08]} 41. Qf5+ {[%clk 0:00:11]}  Qf6 {[%clk 0:00:07]} 42. Qc2 {[%clk 0:00:06]}  Qxh4+ {[%clk 0:00:06]} 43. Kg1 {[%clk 0:00:07]}  Qe1+ {[%clk 0:00:06]} 44. Kh2 {[%clk 0:00:08]}  Qh4+ {[%clk 0:00:06]} 45. Kg1 {[%clk 0:00:08]}  Qd4+ {[%clk 0:00:07]} 46. Kh1 {[%clk 0:00:07]}  Qc5 {[%clk 0:00:06]} 47. Qe4 {[%clk 0:00:05]}  Ke7 {[%clk 0:00:06]} 48. Qh4+ {[%clk 0:00:05]}  Kd7 {[%clk 0:00:05]} 49. Qg3 {[%clk 0:00:03]}  Qd6 {[%clk 0:00:04]} 50. Qg6 {[%clk 0:00:03]}  Qd1+ {[%clk 0:00:03]} 51. Kh2 {[%clk 0:00:03]}  Qd6+ {[%clk 0:00:03]} 52. Kh1 {[%clk 0:00:03]}  Qe5 {[%clk 0:00:03]} 53. Qf7+ {[%clk 0:00:03]}  Kd6 {[%clk 0:00:03]} 54. Qe8 {[%clk 0:00:04]}  Qe1+ {[%clk 0:00:02]} 55. Kh2 {[%clk 0:00:04]}  Qh4+ {[%clk 0:00:02]} 56. Kg1 {[%clk 0:00:04]}  Qd4+ {[%clk 0:00:02]} 57. Kh1 {[%clk 0:00:04]}  Ke5 {[%clk 0:00:01]} 58. Qh5+ {[%clk 0:00:03]} 1-0

[Event "January 9 Early 2024"]
[Site "https://www.chess.com"]
[Date "2024.01.11"]
[Round "6"]
[White "Parra Gomez, Adrian"]
[Black "Yurovskykh, Oleksandr"]
[Result "0-1"]
[Board "258"]
[TimeControl "180+1"]
[WhiteFideId "3513106"]
[BlackFideId "14134020"]
[WhiteElo "2440"]
[BlackElo "2605"]
[WhiteTeam "CUB"]
[BlackTeam "UKR"]
[WhiteClock "0:00:03"]
[BlackClock "0:00:07"]

1. d4 {[%clk 0:02:58]}  d5 {[%clk 0:02:55]} 2. c4 {[%clk 0:02:59]}  e6 {[%clk 0:02:55]} 3. Nc3 {[%clk 0:02:59]}  Nf6 {[%clk 0:02:55]} 4. Nf3 {[%clk 0:02:58]}  c5 {[%clk 0:02:54]} 5. cxd5 {[%clk 0:02:54]}  Nxd5 {[%clk 0:02:55]} 6. e4 {[%clk 0:02:40]}  Nxc3 {[%clk 0:02:55]} 7. bxc3 {[%clk 0:02:41]}  cxd4 {[%clk 0:02:55]} 8. cxd4 {[%clk 0:02:42]}  Bb4+ {[%clk 0:02:55]} 9. Bd2 {[%clk 0:02:42]}  Bxd2+ {[%clk 0:02:55]} 10. Qxd2 {[%clk 0:02:42]}  O-O {[%clk 0:02:54]} 11. Bc4 {[%clk 0:02:43]}  Nd7 {[%clk 0:02:55]} 12. O-O {[%clk 0:02:42]}  b6 {[%clk 0:02:55]} 13. Rad1 {[%clk 0:02:39]}  Bb7 {[%clk 0:02:54]} 14. Rfe1 {[%clk 0:02:38]}  Rc8 {[%clk 0:02:53]} 15. Bb3 {[%clk 0:02:38]}  Re8 {[%clk 0:02:54]} 16. h3 {[%clk 0:02:36]}  Nf6 {[%clk 0:02:41]} 17. Qf4 {[%clk 0:02:19]}  Nh5 {[%clk 0:02:29]} 18. Qe3 {[%clk 0:02:08]}  h6 {[%clk 0:02:17]} 19. Ne5 {[%clk 0:01:54]}  Nf6 {[%clk 0:02:06]} 20. Qf4 {[%clk 0:01:46]}  Re7 {[%clk 0:02:03]} 21. Re3 {[%clk 0:01:21]}  Qc7 {[%clk 0:01:19]} 22. Qh4 {[%clk 0:01:20]}  Kf8 {[%clk 0:00:58]} 23. Rde1 {[%clk 0:00:45]}  Nd7 {[%clk 0:00:52]} 24. Ng4 {[%clk 0:00:37]}  Qf4 {[%clk 0:00:41]} 25. Rf3 {[%clk 0:00:34]}  Qg5 {[%clk 0:00:41]} 26. Qg3 {[%clk 0:00:17]}  h5 {[%clk 0:00:41]} 27. Nh2 {[%clk 0:00:17]}  Qxg3 {[%clk 0:00:41]} 28. Rxg3 {[%clk 0:00:18]}  Nf6 {[%clk 0:00:39]} 29. Rge3 {[%clk 0:00:15]}  Rd8 {[%clk 0:00:38]} 30. Nf3 {[%clk 0:00:14]}  Rc7 {[%clk 0:00:36]} 31. d5 {[%clk 0:00:14]}  exd5 {[%clk 0:00:34]} 32. e5 {[%clk 0:00:15]}  Ne4 {[%clk 0:00:35]} 33. Nd4 {[%clk 0:00:14]}  Re7 {[%clk 0:00:31]} 34. f4 {[%clk 0:00:12]}  g6 {[%clk 0:00:28]} 35. Kh2 {[%clk 0:00:09]}  Nc5 {[%clk 0:00:28]} 36. Rd1 {[%clk 0:00:08]}  Ne6 {[%clk 0:00:28]} 37. Nb5 {[%clk 0:00:07]}  Nxf4 {[%clk 0:00:26]} 38. Nd6 {[%clk 0:00:08]}  Rxd6 {[%clk 0:00:20]} 39. Rf1 {[%clk 0:00:08]}  Rde6 {[%clk 0:00:16]} 40. Rxf4 {[%clk 0:00:08]}  Rxe5 {[%clk 0:00:17]} 41. Ref3 {[%clk 0:00:08]}  Kg7 {[%clk 0:00:16]} 42. Rd4 {[%clk 0:00:07]}  Rc7 {[%clk 0:00:16]} 43. Rfd3 {[%clk 0:00:07]}  Rc5 {[%clk 0:00:16]} 44. a4 {[%clk 0:00:07]}  Bc6 {[%clk 0:00:16]} 45. Bd1 {[%clk 0:00:07]}  Re4 {[%clk 0:00:15]} 46. Bf3 {[%clk 0:00:07]}  Rxd4 {[%clk 0:00:15]} 47. Rxd4 {[%clk 0:00:08]}  Ra5 {[%clk 0:00:15]} 48. Rd2 {[%clk 0:00:06]}  Rxa4 {[%clk 0:00:15]} 49. Rc2 {[%clk 0:00:07]}  Bd7 {[%clk 0:00:09]} 50. Bxd5 {[%clk 0:00:07]}  Be6 {[%clk 0:00:10]} 51. Bf3 {[%clk 0:00:07]}  Ra1 {[%clk 0:00:09]} 52. Rc7 {[%clk 0:00:07]}  a5 {[%clk 0:00:08]} 53. h4 {[%clk 0:00:07]}  a4 {[%clk 0:00:07]} 54. Rb7 {[%clk 0:00:08]}  Rb1 {[%clk 0:00:07]} 55. Ra7 {[%clk 0:00:07]}  b5 {[%clk 0:00:07]} 56. Bc6 {[%clk 0:00:07]}  Bc4 {[%clk 0:00:07]} 57. Kg3 {[%clk 0:00:06]}  Rb3+ {[%clk 0:00:08]} 58. Kf4 {[%clk 0:00:06]}  a3 {[%clk 0:00:07]} 59. g4 {[%clk 0:00:06]}  hxg4 {[%clk 0:00:07]} 60. Kxg4 {[%clk 0:00:07]}  b4 {[%clk 0:00:07]} 61. h5 {[%clk 0:00:07]}  gxh5+ {[%clk 0:00:07]} 62. Kxh5 {[%clk 0:00:07]}  Rb2 {[%clk 0:00:07]} 63. Be4 {[%clk 0:00:05]}  a2 {[%clk 0:00:07]} 64. Ra5 {[%clk 0:00:05]}  b3 {[%clk 0:00:07]} 65. Rg5+ {[%clk 0:00:06]}  Kf6 {[%clk 0:00:07]} 66. Rf5+ {[%clk 0:00:06]}  Ke7 {[%clk 0:00:07]} 67. Ra5 {[%clk 0:00:07]}  Rb1 {[%clk 0:00:07]} 68. Ra7+ {[%clk 0:00:06]}  Kf6 {[%clk 0:00:07]} 69. Bxb1 {[%clk 0:00:03]}  axb1=Q {[%clk 0:00:08]} 70. Ra6+ {[%clk 0:00:03]}  Bxa6 {[%clk 0:00:07]} 71. Kh6 {[%clk 0:00:03]}  Qg6# {[%clk 0:00:07]} 0-1

[Event "January 9 Early 2024"]
[Site "https://www.chess.com"]
[Date "2024.01.11"]
[Round "6"]
[White "Rasulov, Vugar"]
[Black "Firouzja, Alireza"]
[Result "0-1"]
[Board "260"]
[TimeControl "180+1"]
[WhiteFideId "13402390"]
[BlackFideId "12573981"]
[WhiteElo "2987"]
[BlackElo "3140"]
[WhiteTeam "AZE"]
[BlackTeam "FRA"]
[WhiteClock "0:00:02"]
[BlackClock "0:00:06"]

1. e4 {[%clk 0:03:00]}  c6 {[%clk 0:03:00]} 2. d4 {[%clk 0:03:00]}  d5 {[%clk 0:03:01]} 3. exd5 {[%clk 0:02:56]}  cxd5 {[%clk 0:03:02]} 4. Bd3 {[%clk 0:02:56]}  Nf6 {[%clk 0:03:01]} 5. c3 {[%clk 0:02:55]}  Bg4 {[%clk 0:03:02]} 6. Qb3 {[%clk 0:02:54]}  Qc7 {[%clk 0:03:02]} 7. Nd2 {[%clk 0:02:49]}  Nc6 {[%clk 0:03:00]} 8. Ngf3 {[%clk 0:02:49]}  e6 {[%clk 0:03:00]} 9. O-O {[%clk 0:02:44]}  Bd6 {[%clk 0:03:00]} 10. h3 {[%clk 0:02:45]}  Bh5 {[%clk 0:03:00]} 11. Re1 {[%clk 0:02:40]}  O-O-O {[%clk 0:02:39]} 12. Bb5 {[%clk 0:02:36]}  Nd7 {[%clk 0:02:24]} 13. a4 {[%clk 0:02:11]}  Rhg8 {[%clk 0:02:23]} 14. a5 {[%clk 0:02:04]}  a6 {[%clk 0:02:04]} 15. Bxc6 {[%clk 0:01:53]}  Qxc6 {[%clk 0:02:05]} 16. Ne5 {[%clk 0:01:39]}  Bxe5 {[%clk 0:02:05]} 17. dxe5 {[%clk 0:01:40]}  Nc5 {[%clk 0:02:06]} 18. Qb6 {[%clk 0:01:33]}  Qxb6 {[%clk 0:01:57]} 19. axb6 {[%clk 0:01:34]}  Kd7 {[%clk 0:01:47]} 20. g4 {[%clk 0:01:22]}  Bg6 {[%clk 0:01:47]} 21. Nf3 {[%clk 0:01:22]}  Nd3 {[%clk 0:01:40]} 22. Rd1 {[%clk 0:01:11]}  Kc6 {[%clk 0:01:35]} 23. Nd4+ {[%clk 0:00:50]}  Kxb6 {[%clk 0:01:26]} 24. f4 {[%clk 0:00:50]}  Nxc1 {[%clk 0:01:20]} 25. Raxc1 {[%clk 0:00:49]}  Be4 {[%clk 0:01:19]} 26. Kf2 {[%clk 0:00:49]}  Rge8 {[%clk 0:01:02]} 27. Ke3 {[%clk 0:00:49]}  Rc8 {[%clk 0:01:03]} 28. c4 {[%clk 0:00:48]}  a5 {[%clk 0:01:00]} 29. Nb5 {[%clk 0:00:45]}  Rc6 {[%clk 0:00:41]} 30. Nd6 {[%clk 0:00:44]}  Rf8 {[%clk 0:00:41]} 31. Rc3 {[%clk 0:00:37]}  Ka6 {[%clk 0:00:36]} 32. Ra1 {[%clk 0:00:33]}  Rb6 {[%clk 0:00:25]} 33. Ra2 {[%clk 0:00:16]}  Bb1 {[%clk 0:00:17]} 34. Ra1 {[%clk 0:00:17]}  Rxb2 {[%clk 0:00:16]} 35. cxd5 {[%clk 0:00:17]}  exd5 {[%clk 0:00:16]} 36. Rc7 {[%clk 0:00:12]}  b6 {[%clk 0:00:14]} 37. Rxf7 {[%clk 0:00:11]}  Rd8 {[%clk 0:00:08]} 38. Rxg7 {[%clk 0:00:10]}  Rb4 {[%clk 0:00:05]} 39. f5 {[%clk 0:00:10]}  d4+ {[%clk 0:00:06]} 40. Kf4 {[%clk 0:00:08]}  d3+ {[%clk 0:00:06]} 41. Ke3 {[%clk 0:00:09]}  Rb2 {[%clk 0:00:04]} 42. Rxb1 {[%clk 0:00:07]}  Rxb1 {[%clk 0:00:04]} 43. Kxd3 {[%clk 0:00:07]}  Re1 {[%clk 0:00:03]} 44. Kd4 {[%clk 0:00:04]}  a4 {[%clk 0:00:04]} 45. Rc7 {[%clk 0:00:02]}  Rd1+ {[%clk 0:00:03]} 46. Ke4 {[%clk 0:00:02]}  Re1+ {[%clk 0:00:04]} 47. Kf4 {[%clk 0:00:02]}  b5 {[%clk 0:00:04]} 48. Rc6+ {[%clk 0:00:02]}  Ka7 {[%clk 0:00:02]} 49. Nxb5+ {[%clk 0:00:02]}  Kb7 {[%clk 0:00:03]} 50. Rh6 {[%clk 0:00:02]}  Ra8 {[%clk 0:00:03]} 51. Nd6+ {[%clk 0:00:02]}  Kc6 {[%clk 0:00:03]} 52. Ne4+ {[%clk 0:00:02]}  Kd5 {[%clk 0:00:03]} 53. Rd6+ {[%clk 0:00:03]}  Kc4 {[%clk 0:00:03]} 54. Nd2+ {[%clk 0:00:03]}  Kc3 {[%clk 0:00:03]} 55. Ne4+ {[%clk 0:00:04]}  Kc4 {[%clk 0:00:02]} 56. Nd2+ {[%clk 0:00:03]}  Kc3 {[%clk 0:00:03]} 57. Ne4+ {[%clk 0:00:04]}  Kc2 {[%clk 0:00:03]} 58. Rc6+ {[%clk 0:00:04]}  Kd3 {[%clk 0:00:04]} 59. Rc3+ {[%clk 0:00:04]}  Kd4 {[%clk 0:00:04]} 60. Ra3 {[%clk 0:00:03]}  Rxe4+ {[%clk 0:00:04]} 61. Kg5 {[%clk 0:00:03]}  Rxe5 {[%clk 0:00:05]} 62. Kh6 {[%clk 0:00:02]}  Re3 {[%clk 0:00:05]} 63. Ra1 {[%clk 0:00:02]}  Rxh3+ {[%clk 0:00:06]} 64. Kg7 {[%clk 0:00:03]}  Rg3 {[%clk 0:00:06]} 65. Kf6 {[%clk 0:00:02]}  Rxg4 {[%clk 0:00:06]} 0-1

[Event "January 9 Early 2024"]
[Site "https://www.chess.com"]
[Date "2024.01.11"]
[Round "6"]
[White "Grischuk, Alexander"]
[Black "Costachi, Mihnea"]
[Result "1-0"]
[Board "261"]
[TimeControl "180+1"]
[WhiteFideId "4126025"]
[BlackFideId "1217518"]
[WhiteElo "3066"]
[BlackElo "2864"]
[WhiteTeam "RUS"]
[BlackTeam "ROU"]
[WhiteClock "0:00:12"]
[BlackClock "0:00:04"]

1. d4 {[%clk 0:03:00]}  Nf6 {[%clk 0:02:59]} 2. c4 {[%clk 0:03:01]}  c6 {[%clk 0:02:53]} 3. Bf4 {[%clk 0:02:57]}  d5 {[%clk 0:02:53]} 4. e3 {[%clk 0:02:57]}  e6 {[%clk 0:02:44]} 5. Nc3 {[%clk 0:02:56]}  Bd6 {[%clk 0:02:41]} 6. Bg5 {[%clk 0:02:55]}  h6 {[%clk 0:02:41]} 7. Bh4 {[%clk 0:02:55]}  O-O {[%clk 0:02:41]} 8. Nf3 {[%clk 0:02:54]}  Nbd7 {[%clk 0:02:39]} 9. Qc2 {[%clk 0:02:52]}  a6 {[%clk 0:02:27]} 10. a4 {[%clk 0:02:26]}  b6 {[%clk 0:02:12]} 11. cxd5 {[%clk 0:02:23]}  cxd5 {[%clk 0:02:10]} 12. Bd3 {[%clk 0:02:22]}  Bb7 {[%clk 0:02:07]} 13. O-O {[%clk 0:02:22]}  Qb8 {[%clk 0:01:49]} 14. Bg3 {[%clk 0:02:10]}  Bxg3 {[%clk 0:01:46]} 15. hxg3 {[%clk 0:02:10]}  Rc8 {[%clk 0:01:44]} 16. Qe2 {[%clk 0:02:04]}  e5 {[%clk 0:01:34]} 17. Bf5 {[%clk 0:01:57]}  Re8 {[%clk 0:01:27]} 18. Bxd7 {[%clk 0:01:53]}  Nxd7 {[%clk 0:01:27]} 19. Nxe5 {[%clk 0:01:50]}  Nxe5 {[%clk 0:01:26]} 20. dxe5 {[%clk 0:01:51]}  Qxe5 {[%clk 0:01:26]} 21. Rfd1 {[%clk 0:01:50]}  Rad8 {[%clk 0:01:15]} 22. Qg4 {[%clk 0:01:46]}  d4 {[%clk 0:01:01]} 23. Rxd4 {[%clk 0:01:44]}  Rxd4 {[%clk 0:01:00]} 24. Qxd4 {[%clk 0:01:41]}  Qxd4 {[%clk 0:00:52]} 25. exd4 {[%clk 0:01:42]}  Rd8 {[%clk 0:00:52]} 26. Rd1 {[%clk 0:01:40]}  Bd5 {[%clk 0:00:49]} 27. f3 {[%clk 0:01:35]}  f6 {[%clk 0:00:49]} 28. g4 {[%clk 0:01:33]}  Kf7 {[%clk 0:00:49]} 29. Kf2 {[%clk 0:01:34]}  Ke6 {[%clk 0:00:49]} 30. Ke3 {[%clk 0:01:31]}  Re8 {[%clk 0:00:43]} 31. Kd3 {[%clk 0:01:24]}  Kd6 {[%clk 0:00:39]} 32. Ne4+ {[%clk 0:01:20]}  Kd7 {[%clk 0:00:36]} 33. Rc1 {[%clk 0:01:20]}  Rb8 {[%clk 0:00:28]} 34. Rc3 {[%clk 0:01:05]}  a5 {[%clk 0:00:23]} 35. Nd2 {[%clk 0:01:04]}  Re8 {[%clk 0:00:21]} 36. Rc1 {[%clk 0:01:02]}  Re7 {[%clk 0:00:17]} 37. b3 {[%clk 0:01:01]}  Re8 {[%clk 0:00:16]} 38. Nc4 {[%clk 0:01:02]}  Bxc4+ {[%clk 0:00:16]} 39. bxc4 {[%clk 0:01:02]}  Kc6 {[%clk 0:00:17]} 40. Rb1 {[%clk 0:00:59]}  Re7 {[%clk 0:00:16]} 41. Rd1 {[%clk 0:00:48]}  Re8 {[%clk 0:00:16]} 42. Kd2 {[%clk 0:00:48]}  Rd8 {[%clk 0:00:16]} 43. Kc2 {[%clk 0:00:41]}  Re8 {[%clk 0:00:16]} 44. Kd3 {[%clk 0:00:41]}  Re7 {[%clk 0:00:16]} 45. Rc1 {[%clk 0:00:39]}  Re8 {[%clk 0:00:14]} 46. c5 {[%clk 0:00:39]}  bxc5 {[%clk 0:00:13]} 47. Rxc5+ {[%clk 0:00:39]}  Kb6 {[%clk 0:00:14]} 48. Rb5+ {[%clk 0:00:37]}  Ka6 {[%clk 0:00:13]} 49. Rb1 {[%clk 0:00:37]}  Rd8 {[%clk 0:00:11]} 50. Re1 {[%clk 0:00:34]}  Rd7 {[%clk 0:00:09]} 51. Re6+ {[%clk 0:00:33]}  Kb7 {[%clk 0:00:09]} 52. f4 {[%clk 0:00:31]}  Rc7 {[%clk 0:00:08]} 53. f5 {[%clk 0:00:31]}  Kc8 {[%clk 0:00:05]} 54. Ra6 {[%clk 0:00:29]}  Rc1 {[%clk 0:00:05]} 55. Ra8+ {[%clk 0:00:22]}  Kb7 {[%clk 0:00:04]} 56. Rg8 {[%clk 0:00:23]}  Rg1 {[%clk 0:00:04]} 57. Rxg7+ {[%clk 0:00:22]}  Kc6 {[%clk 0:00:05]} 58. Ke4 {[%clk 0:00:12]}  Re1+ {[%clk 0:00:03]} 59. Kf3 {[%clk 0:00:12]}  Kd5 {[%clk 0:00:03]} 60. Rd7+ {[%clk 0:00:11]}  Kc4 {[%clk 0:00:03]} 61. Rd6 {[%clk 0:00:11]}  Ra1 {[%clk 0:00:03]} 62. Rxf6 {[%clk 0:00:11]}  Kxd4 {[%clk 0:00:03]} 63. Rd6+ {[%clk 0:00:11]}  Ke5 {[%clk 0:00:03]} 64. Re6+ {[%clk 0:00:12]}  Kd5 {[%clk 0:00:04]} 65. Rxh6 {[%clk 0:00:12]}  Rxa4 {[%clk 0:00:04]} 66. Ra6 {[%clk 0:00:12]}  Ra1 {[%clk 0:00:04]} 67. Kf4 {[%clk 0:00:12]}  a4 {[%clk 0:00:04]} 68. Kg5 {[%clk 0:00:12]}  a3 {[%clk 0:00:04]} 69. f6 {[%clk 0:00:13]}  a2 {[%clk 0:00:04]} 70. Kg6 {[%clk 0:00:12]}  Ke5 {[%clk 0:00:03]} 71. g5 {[%clk 0:00:12]}  Rf1 {[%clk 0:00:03]} 72. Rxa2 {[%clk 0:00:12]}  Rf2 {[%clk 0:00:04]} 73. Rxf2 {[%clk 0:00:12]} 1-0

[Event "January 9 Early 2024"]
[Site "https://www.chess.com"]
[Date "2024.01.11"]
[Round "6"]
[White "Gokerkan, Cem Kaan"]
[Black "Kohler, Aran"]
[Result "1-0"]
[Board "263"]
[TimeControl "180+1"]
[WhiteFideId "6336760"]
[BlackFideId "1002856"]
[WhiteElo "2809"]
[BlackElo "2264"]
[WhiteTeam "TUR"]
[BlackTeam "NED"]
[WhiteClock "0:00:13"]
[BlackClock "0:00:04"]

1. e4 {[%clk 0:03:00]}  c6 {[%clk 0:02:59]} 2. d4 {[%clk 0:03:00]}  d5 {[%clk 0:02:59]} 3. e5 {[%clk 0:03:01]}  c5 {[%clk 0:02:59]} 4. dxc5 {[%clk 0:02:58]}  Nc6 {[%clk 0:02:59]} 5. f4 {[%clk 0:02:58]}  e6 {[%clk 0:02:53]} 6. Be3 {[%clk 0:02:58]}  d4 {[%clk 0:02:50]} 7. Bf2 {[%clk 0:02:59]}  Bxc5 {[%clk 0:02:50]} 8. Nd2 {[%clk 0:03:00]}  Nge7 {[%clk 0:02:43]} 9. a3 {[%clk 0:02:59]}  Nf5 {[%clk 0:02:25]} 10. Ne4 {[%clk 0:02:47]}  Bb6 {[%clk 0:02:08]} 11. g4 {[%clk 0:02:36]}  Ne3 {[%clk 0:01:51]} 12. Bxe3 {[%clk 0:02:36]}  dxe3 {[%clk 0:01:52]} 13. Nd6+ {[%clk 0:02:37]}  Kf8 {[%clk 0:01:43]} 14. Nf3 {[%clk 0:02:37]}  Bd7 {[%clk 0:01:30]} 15. Nxb7 {[%clk 0:02:24]}  Qe7 {[%clk 0:01:04]} 16. Qd6 {[%clk 0:02:23]}  Qxd6 {[%clk 0:01:01]} 17. Nxd6 {[%clk 0:02:24]}  Nd4 {[%clk 0:00:55]} 18. Nxd4 {[%clk 0:02:13]}  Bxd4 {[%clk 0:00:52]} 19. c3 {[%clk 0:02:00]}  Bb6 {[%clk 0:00:50]} 20. Be2 {[%clk 0:01:40]}  Ke7 {[%clk 0:00:41]} 21. O-O-O {[%clk 0:01:39]}  Bc6 {[%clk 0:00:38]} 22. Rhf1 {[%clk 0:01:38]}  Rhd8 {[%clk 0:00:38]} 23. Bf3 {[%clk 0:01:04]}  Bxf3 {[%clk 0:00:35]} 24. Rxf3 {[%clk 0:01:05]}  Rab8 {[%clk 0:00:25]} 25. Re1 {[%clk 0:01:03]}  f6 {[%clk 0:00:25]} 26. Re2 {[%clk 0:00:56]}  fxe5 {[%clk 0:00:19]} 27. fxe5 {[%clk 0:00:57]}  Rf8 {[%clk 0:00:18]} 28. Rxf8 {[%clk 0:00:51]}  Rxf8 {[%clk 0:00:19]} 29. b4 {[%clk 0:00:44]}  Rf1+ {[%clk 0:00:17]} 30. Kc2 {[%clk 0:00:44]}  Ra1 {[%clk 0:00:17]} 31. Nc8+ {[%clk 0:00:43]}  Ke8 {[%clk 0:00:14]} 32. Nxb6 {[%clk 0:00:44]}  axb6 {[%clk 0:00:14]} 33. Rxe3 {[%clk 0:00:44]}  Rxa3 {[%clk 0:00:15]} 34. Kb2 {[%clk 0:00:43]}  Ra8 {[%clk 0:00:14]} 35. Rd3 {[%clk 0:00:44]}  Ke7 {[%clk 0:00:14]} 36. Rd6 {[%clk 0:00:44]}  Rb8 {[%clk 0:00:14]} 37. b5 {[%clk 0:00:44]}  h6 {[%clk 0:00:14]} 38. c4 {[%clk 0:00:43]}  g6 {[%clk 0:00:14]} 39. Kc3 {[%clk 0:00:43]}  h5 {[%clk 0:00:14]} 40. g5 {[%clk 0:00:41]}  h4 {[%clk 0:00:13]} 41. h3 {[%clk 0:00:42]}  Rb7 {[%clk 0:00:13]} 42. Kb4 {[%clk 0:00:42]}  Rb8 {[%clk 0:00:13]} 43. Rc6 {[%clk 0:00:39]}  Rb7 {[%clk 0:00:12]} 44. Kc3 {[%clk 0:00:39]}  Kd7 {[%clk 0:00:12]} 45. Kd4 {[%clk 0:00:39]}  Ke7 {[%clk 0:00:12]} 46. Ke4 {[%clk 0:00:40]}  Kd7 {[%clk 0:00:13]} 47. Kf4 {[%clk 0:00:40]}  Ke7 {[%clk 0:00:13]} 48. Kg4 {[%clk 0:00:41]}  Kd7 {[%clk 0:00:12]} 49. Kxh4 {[%clk 0:00:41]}  Rb8 {[%clk 0:00:13]} 50. Kg4 {[%clk 0:00:41]}  Rb7 {[%clk 0:00:13]} 51. h4 {[%clk 0:00:41]}  Ke7 {[%clk 0:00:13]} 52. h5 {[%clk 0:00:41]}  gxh5+ {[%clk 0:00:14]} 53. Kxh5 {[%clk 0:00:42]}  Kf7 {[%clk 0:00:14]} 54. Kg4 {[%clk 0:00:41]}  Ke7 {[%clk 0:00:14]} 55. Kf4 {[%clk 0:00:41]}  Kf7 {[%clk 0:00:14]} 56. Ke4 {[%clk 0:00:42]}  Ke7 {[%clk 0:00:13]} 57. Kd4 {[%clk 0:00:42]}  Rd7+ {[%clk 0:00:13]} 58. Kc3 {[%clk 0:00:43]}  Rb7 {[%clk 0:00:13]} 59. g6 {[%clk 0:00:41]}  Kd7 {[%clk 0:00:09]} 60. g7 {[%clk 0:00:39]}  Rb8 {[%clk 0:00:10]} 61. Rxb6 {[%clk 0:00:37]}  Rg8 {[%clk 0:00:09]} 62. c5 {[%clk 0:00:36]}  Kc7 {[%clk 0:00:07]} 63. Rxe6 {[%clk 0:00:33]}  Rxg7 {[%clk 0:00:08]} 64. Kc4 {[%clk 0:00:34]}  Rg4+ {[%clk 0:00:08]} 65. Kd5 {[%clk 0:00:34]}  Rg1 {[%clk 0:00:07]} 66. Re7+ {[%clk 0:00:34]}  Kb8 {[%clk 0:00:07]} 67. Rh7 {[%clk 0:00:34]}  Ka8 {[%clk 0:00:07]} 68. b6 {[%clk 0:00:34]}  Rd1+ {[%clk 0:00:06]} 69. Kc6 {[%clk 0:00:35]}  Rd8 {[%clk 0:00:05]} 70. e6 {[%clk 0:00:34]}  Kb8 {[%clk 0:00:04]} 71. Rf7 {[%clk 0:00:32]}  Rc8+ {[%clk 0:00:04]} 72. Kb5 {[%clk 0:00:32]}  Rd8 {[%clk 0:00:04]} 73. e7 {[%clk 0:00:32]}  Re8 {[%clk 0:00:04]} 74. Rf8 {[%clk 0:00:32]}  Kb7 {[%clk 0:00:04]} 75. c6+ {[%clk 0:00:13]} 1-0